Cogmind - Beta 13 @@@ ROGUE MODE // 2024.04.17 @ 12:08:38 Player: Nebula avali Result: Destroyed by G-34 Mercenary with Small Laser Performance ------------- Evolutions (1) 500 Regions Visited (3) 600 Robots Destroyed (8) 40 Value Destroyed (275) 275 Prototype IDs (0) 0 Alien Tech Used (0) 0 Bonus (200) 200 TOTAL SCORE: 1615 Bonus ------- Pacifist 200 Cogmind --------- Core Integrity 0/400 Matter 196/300 Energy 250/250 System Corruption 0% Temperature Cool (6) Movement Rolling (100) Location -9/Mines Parts ------- > --- POWER (1) -------- Ion Engine > --- PROPULSION (2) --- Compact Wheel Compact Wheel > --- UTILITY (4) ------ Small Storage Unit > --- WEAPON (2) ------- Rocket Launcher > --- INVENTORY (8) ---- Maul Peak State ------------ > --- POWER ------------ Ion Engine > --- PROPULSION ------- Aluminum Leg Aluminum Leg > --- UTILITY ---------- Small Storage Unit > --- WEAPON ----------- Maul > --- INVENTORY -------- Ion Engine Compact Wheel Compact Wheel Rocket Launcher Rocket Launcher Rocket Launcher Maul [Rating: 7] Favorites ----------- Power Ion Engine Engine Ion Engine Propulsion Aluminum Leg Leg Aluminum Leg Wheel Compact Wheel Utility Small Storage Unit Storage Small Storage Unit Weapon Maul Energy Gun EM Pulse Gun Ballistic Gun Assault Rifle Launcher Rocket Launcher Impact Weapon Maul Build | -11 -10 -9 -9 ------- Run | Yrd Mat Mat Min Slots Evolved 2 | . . 2 . Power . | . . . . Propulsion . | . . . . Utility 2 | . . 2 . Weapon . | . . . . Parts Attached 7 | . 1 . 6 Power 1 | . . . 1 Engine 1 | . . . 1 Core . | . . . . Reactor . | . . . . Propulsion 2 | . . . 2 Treads . | . . . . Leg . | . . . . Wheel 2 | . . . 2 Hover . | . . . . Flight . | . . . . Utility . | . . . . Device . | . . . . Storage . | . . . . Processor . | . . . . Hackware . | . . . . Protection . | . . . . Artifact . | . . . . Weapon 4 | . 1 . 3 Energy Gun . | . . . . Energy Cannon . | . . . . Ballistic Gun . | . . . . Ballistic Cannon . | . . . . Launcher 3 | . . . 3 Special Weapon . | . . . . Impact Weapon 1 | . 1 . . Slashing Weapon . | . . . . Piercing Weapon . | . . . . Special Melee Weapon . | . . . . Unidentified Prototypes . | . . . . Parts Lost 5 | . . . 5 Power . | . . . . Propulsion 2 | . . . 2 Utility . | . . . . Weapon 3 | . . . 3 Highest Loss Streak 5 | . . . 5 To Critical Strikes . | . . . . Average Slot Usage (%) 54 | . 76 55 46 Engine 9 | . 14 11 8 Leg 17 | . 28 22 11 Wheel 2 | . . . 5 Storage 11 | . 14 11 11 Energy Gun 1 | . 5 . . Ballistic Gun 1 | . 5 . . Launcher 2 | . . . 4 Impact Weapon 7 | . 8 11 6 Naked Turns . | . . . . Heaviest Build 14 | 14 14 13 14 Greatest Support 32 | 20 20 20 32 Greatest Overweight (x) 2 | . . . 2 Average Overweight (x) . | . . . . Largest Inventory Capacity 8 | . 8 8 8 Average Capacity 8 | . 8 8 8 Most Carried 8 | . 8 7 7 Average Carried 5 | . 6 7 5 Final Capacity 8 | 8 8 8 8 Final Carried 7 | 6 7 7 1 Class Distribution -------------------- 100% | Mutant Dominant Class ---------------- Mutant | -10/Materials Mutant | -9/Materials Mutant | -9/Mines Resources | -11 -10 -9 -9 ----------- Run | Yrd Mat Mat Min Matter Collected 255 | 179 . . 76 Remotely . | . . . . Salvage Created 241 | . . 16 225 Parts 5 | . . . 5 Haulers Intercepted . | . . . . Recyclers Shooed . | . . . . Parts Field Recycled . | . . . . Retrieved Matter . | . . . . Parts Self-Destructed . | . . . . Prevented . | . . . . Kills | -11 -10 -9 -9 ------- Run | Yrd Mat Mat Min Combat Hostiles Destroyed 6 | . . . 6 Melee 1 | . . . 1 AOE 3 | . . . 3 Classes Destroyed 4 | . . 1 3 Recycler 1 | . . . 1 Operator 1 | . . 1 . Grunt 4 | . . . 4 Duelist 2 | . . . 2 Best Kill Streak 5 | . . 1 5 Combat Bots Only 4 | . . . 4 Max Kills in Single Turn 1 | . . 1 1 Gunslinging . | . . . . Exploded 1 | . . . 1 Melee 1 | . . . 1 Uniques/NPCs Destroyed . | . . . . Combat | -11 -10 -9 -9 -------- Run | Yrd Mat Mat Min Hostile Shots Fired 73 | . . 1 72 Missed 18 | . . 1 17 Damage Taken 955 | . . . 955 Core 407 | . . . 407 Absorbed by Shields . | . . . . Core Remaining (%) 100 | 100 100 . . Volleys Fired 9 | . . . 9 Largest 1 | . . . 1 Hottest 33 | . . . 33 Shots Fired 9 | . . . 9 Gun . | . . . . Cannon . | . . . . Launcher 9 | . . . 9 Special . | . . . . Kinetic . | . . . . Thermal . | . . . . Explosive 9 | . . . 9 Electromagnetic . | . . . . Robot Hit Streak 3 | . . . 3 Robot Miss Streak 1 | . . . 1 Penetration Max . | . . . . Secondary Targets . | . . . . Shots Hit Robots 13 | . . 1 12 Core Hits 8 | . . . 8 Critical Kills . | . . . . Critical Parts Destroyed 4 | . . 1 3 Critical Strikes 4 | . . 1 3 Smash 4 | . . 1 3 Melee Attacks 12 | . 1 2 9 Impact 12 | . 1 2 9 Slashing . | . . . . Piercing . | . . . . Sneak Attacks . | . . . . Combat Hostiles . | . . . . Follow-up Attacks . | . . . . Damage Inflicted 731 | . . 48 683 Guns . | . . . . Cannons . | . . . . Explosions 409 | . . . 409 Melee 322 | . . 48 274 Ramming . | . . . . Kinetic . | . . . . Thermal . | . . . . Explosive 409 | . . . 409 Electromagnetic . | . . . . Impact 322 | . . 48 274 Slashing . | . . . . Piercing . | . . . . Highest Corruption . | . . . . Average Corruption . | . . . . Corruption Purged . | . . . . Corruption Blocked . | . . . . Overload Shots . | . . . . Overflow Damage 185 | . . 48 137 Projectiles . | . . . . Explosions . | . . . . Melee 185 | . . 48 137 Knockbacks 1 | . . . 1 Impact 1 | . . . 1 Kinetic . | . . . . Secondary . | . . . . Self-Inflicted Damage 122 | . . . 122 Shots 3 | . . . 3 Rammed . | . . . . Targets Rammed . | . . . . Kicked . | . . . . Crushed . | . . . . Highest Temperature 9 | . . . 9 Average Temperature 7 | . . . 7 Received Heat Transfer 333 | . . . 333 Siege Activations . | . . . . Robots Corrupted . | . . . . Combat Hostiles . | . . . . Parts Fried 2 | . . . 2 Impact Corruptions 5 | . . 1 4 Robots Melted . | . . . . Combat Hostiles . | . . . . Parts Melted . | . . . . Heat Transferred . | . . . . Parts Sabotaged . | . . . . Parts Stolen . | . . . . Parts Stripped . | . . . . Power Chain Reactions . | . . . . Alert | -11 -10 -9 -9 ------- Run | Yrd Mat Mat Min Peak Influence 204 | . 1 35 204 Initial 13 | . . . 13 Average 55 | . . 17 90 Maximum Alert Level 1 | . . . 1 Low Security (%) 93 | . 100 100 88 Level 1 6 | . . . 11 Level 2 . | . . . . Level 3 . | . . . . Level 4 . | . . . . Level 5 . | . . . . High Security . | . . . . Max Security . | . . . . Squads Dispatched 3 | . 1 1 1 Investigation . | . . . . Extermination . | . . . . Reinforcement 3 | . 1 1 1 Assault . | . . . . Garrison . | . . . . Intercept . | . . . . Searches Triggered . | . . . . Construction Impeded 1 | . . . 1 Haulers Reinforced . | . . . . Active Scanning Responses . | . . . . Cargo Convoy Interrupts . | . . . . Stealth | -11 -10 -9 -9 --------- Run | Yrd Mat Mat Min Distress Signals 1 | . . 1 . Communications Jammed . | . . . . Distress Signals . | . . . . Times Spotted 17 | . 1 3 13 Peak Tracking Total 5 | . 2 3 5 Tactical Retreats . | . . . . Traps | -11 -10 -9 -9 ------- Run | Yrd Mat Mat Min Traps Triggered . | . . . . Indirectly . | . . . . Trap Hack Attempts . | . . . . Triggered . | . . . . Disarmed . | . . . . Reprogrammed . | . . . . Reused . | . . . . Traps Extracted . | . . . . Installed . | . . . . Triggered . | . . . . Machines | -11 -10 -9 -9 ---------- Run | Yrd Mat Mat Min Machines Disabled 1 | . . . 1 Max in Single Turn 1 | . . . 1 Machines Repaired . | . . . . Machines Dismantled . | . . . . Machines Sabotaged . | . . . . Overloaded Fab Kills . | . . . . Hacking | -11 -10 -9 -9 --------- Run | Yrd Mat Mat Min Machines Accessed 1 | . . 1 . Terminals 1 | . . 1 . Fabricators . | . . . . Repair Stations . | . . . . Recycling Units . | . . . . Scanalyzers . | . . . . Garrison Access . | . . . . Total Hacks 2 | . . 2 . Successful . | . . . . Failed 2 | . . 2 . Catastrophic 1 | . . 1 . Database Lockouts . | . . . . Manual 2 | . . 2 . Terminals 2 | . . 2 . Fabricators . | . . . . Repair Stations . | . . . . Recycling Units . | . . . . Scanalyzers . | . . . . Garrison Access . | . . . . Terminal Hacks . | . . . . Fabricator Hacks . | . . . . Repair Station Hacks . | . . . . Recycling Unit Hacks . | . . . . Scanalyzer . | . . . . Garrison Access Hacks . | . . . . Unauthorized Hacks . | . . . . Terminals . | . . . . Fabricators . | . . . . Repair Stations . | . . . . Recycling Units . | . . . . Scanalyzers . | . . . . Garrison Access . | . . . . Data Cores Recovered . | . . . . Used . | . . . . Hacking Detections 1 | . . 1 . Full Trace Events 1 | . . 1 . Feedback Events . | . . . . Feedback Blocked . | . . . . Robot Schematics Acquired . | . . . . Robots Built . | . . . . Authchips . | . . . . Time . | . . . . Total Robot Build Rating . | . . . . Part Schematics Acquired . | . . . . Parts Built . | . . . . Authchips . | . . . . Time . | . . . . Total Part Build Rating . | . . . . Parts Repaired . | . . . . Time . | . . . . Parts Recycled . | . . . . Recycled Matter . | . . . . Retrieved Matter . | . . . . Retrieved Components . | . . . . Parts Scanalyzed . | . . . . Part Schematics Acquired . | . . . . Parts Damaged . | . . . . Bothacking | -11 -10 -9 -9 ------------ Run | Yrd Mat Mat Min Used RIF Installer . | . . . . Robots Hacked . | . . . . Non-combat . | . . . . Combat . | . . . . Robot Hacks Applied . | . . . . Relay Couplers Released . | . . . . Fabnet Peak Effective % . | . . . . Robots Rewired . | . . . . Allies Hacked . | . . . . Hacks Repelled . | . . . . Allies | -11 -10 -9 -9 -------- Run | Yrd Mat Mat Min Total Allies . | . . . . Largest Group . | . . . . Highest-Rated Group . | . . . . Highest-Rated Ally . | . . . . Total Orders . | . . . . Ally Attacks . | . . . . Total Damage . | . . . . Kills . | . . . . Allies Corrupted . | . . . . Allies Melted . | . . . . Intel | -11 -10 -9 -9 ------- Run | Yrd Mat Mat Min Robot Analysis Total . | . . . . Derelict Logs Recovered 1 | . . . 1 Drone Launches . | . . . . Drone Recoveries . | . . . . Exploration | -11 -10 -9 -9 ------------- Run | Yrd Mat Mat Min Turns Passed 450 | . 101 90 259 Spaces Moved 310 | 1 75 71 163 Core 22 | . . . 22 Treads . | . . . . Legs 234 | 1 75 71 87 Wheels 54 | . . . 54 Hover . | . . . . Flight . | . . . . Fastest Speed 100 | 120 120 120 100 Average Speed 119 | 120 120 120 118 Slowest Speed 190 | 120 120 120 190 Overloaded Moves . | . . . . Propulsion Burnouts . | . . . . Robots Hopped . | . . . . Cave-ins Triggered . | . . . . Exploration Rate (%) 18 | 2 16 13 42 Regions Visited 3 Branch Regions 1 Pre-discovered Areas . | . . . . Known Exits Taken . | . . . . Unknown Exits Taken 3 | 1 1 1 . Scrap Searched . | . . . . Spaces Dug 22 | . 1 . 21 Terrain Destroyed 72 | . 1 . 71 Melee 1 | . 1 . . Projectile . | . . . . AOE 71 | . . . 71 Terrain Rammed . | . . . . Walls Destroyed . | . . . . Machines Disabled . | . . . . Actions | -11 -10 -9 -9 --------- Run | Yrd Mat Mat Min Total 360 | . 87 72 201 Wait 14 | . . . 14 Move 307 | . 74 70 163 Hop . | . . . . Pick Up 4 | . 4 . . Fast Attach 1 | . 1 . . Attach 6 | . . . 6 Detach 2 | . 2 . . Swap . | . . . . Drop 5 | . 5 . . Fire 9 | . . . 9 Melee 12 | . 1 2 9 Ram . | . . . . Kick . | . . . . Crush . | . . . . Escape Stasis . | . . . . Rewire . | . . . . Trap . | . . . . Miscellaneous . | . . . . Route ------- -11/Scrapyard -10/Materials -9/Materials -9/Mines (discovered 2 exits: [*Mat] / [*Zio]) History --------- Turn | Location | Event 1 | -11/Scrapyard | Discovered new exit (range 0) 1 | -11/Scrapyard | Entered Materials 99 | -10/Materials | Discovered new exit (range 3) 102 | -10/Materials | Entered another Materials area 102 | -9/Materials | Evolved 2 slots: Utility x2 174 | -9/Materials | Discovered new exit (range 16) 192 | -9/Materials | Entered Mines 233 | -9/Mines | Discovered new exit (range 5) 257 | -9/Mines | A Derelict revealed a hidden shortcut to a safe place 284 | -9/Mines | Learned location of 1 exit from Materials 311 | -9/Mines | Build established: Mutant 337 | -9/Mines | Core integrity fell below 50% 346 | -9/Mines | Core integrity fell below 20% 380 | -9/Mines | Lost 5 parts (2n3w) 451 | -9/Mines | Destroyed by G-34 Mercenary with Small Laser Last Messages --------------- 00389_ U-05 Engineer builds a Wall. 00393_ U-05 Engineer lays Concrete. 00396_ Acquired 7 matter. 00396_ U-05 Engineer lays Concrete. 00397_ The unstable cave ceiling collapses. 00397_ U-05 Engineer lays Concrete. 00397_ U-05 Engineer builds a Wall. 00401_ U-05 Engineer lays Concrete. 00404_ U-05 Engineer builds a Wall. 00408_ U-05 Engineer lays Concrete. 00410_ U-05 Engineer builds a Wall. 00411_ U-05 Engineer lays Concrete. 00412_ U-05 Engineer builds a Wall. 00414_ U-05 Engineer lays Concrete. 00416_ The unstable cave ceiling collapses. 00417_ U-05 Engineer lays Concrete. 00420_ Core Extractor disabled. 00430_ The unstable cave ceiling collapses. 00441_ U-05 Engineer lays Concrete. 00442_ U-05 Engineer builds a Wall. Map ----- +----------------------------------------------------+ | ?????????????????????????????????# | | ?????????????????????????????##### | | ?????????????????????????????# | | ?????????????????????????????# ## | | ?????????????????????????##### ## ## | | ????????????????????????## ## ##???? | | ????????????????????????# < ## #?????? | | ????????????????????????# ### ##???? | | ????????????????????????## ##?# ##?? ?? | | ?????????????????????????## ##??# ## #???? | | ??????????????????????????## #??## #???? | | ??????????????? ???????????# #??# #???? | | ??????????????? ???????##### #?## ######?### | | ??????????????? ???????#%% ### ##??????# | | ??????????????? ???????# ###### ######### | | ??????????????? ??????## #???# | | ??????????????# ?????## ##??# | | ????????????### ###### ##?# ############# | | ????????????# #### ##???????????# | | ????????????# #?####????????????? | | ????????????# ##### ### #????????????????? | | ????????????# #???# #?## >#???????????????? | | ????????????# #???# #??? #???????????????? | | ?????????#### #??## #???# #???????????????? | | ????????## #### ####### #???????????????? | | ????????# ## g@# #??###???????????????? | | ????????# t ##???????????????????? | | ????????# # #??????????????????? | | ???????# ??## # l####??????????????? | | ??????# ?????# #u ###????????????# | | ??????#???????## ## ##???????????#### | | ???????????????# # #????###???????? | | ???????????????# # ###### #???# ##??????? | | ???????????????#### # #?## #### #??????? | | ????????????????## # #??## ## #??????? | | ????????????????## # #???# """ #??????? | | ?????????????????## ##???# """ #??????? | | ??????????????????# ###???# """ #??????? | | ??????????????????## #????### #??????? | | ?????????????????### ####### ## #??????? | | ?????????????????# ## ##??????? | | ?????????????????# ## ##???????? | | ?????????????????# ####????????? | | ?????????????????# """ """ #??????????? | | ?????????????????# """ """ # ##??????????? | | ?????????????????# """ """ " #??????????? | | ?????????????????# # ##??????????? | | ?????????????????############# ####???????????? | | ????????????????????????????####??????????????? | | ??????????????????????????????????????????????? | +----------------------------------------------------+ Best States ------------- Heat Dissipation 28 Energy Generation 10 Energy Capacity 250 Matter Stores 300 Matter Capacity 300 Sight Range 16 Terrain Scan Density 10 Evasion (%) 55 Item Schematics ----------------- None Robot Schematics ------------------ None Fabricated ------------ Nothing Alien Tech Used ----------------- None Achievements -------------- None Challenges ------------ None Game ------ Seed frogmind Manual? 1 Play Time 00:06:13 Cumulative 42.0 hours Start 2024.04.17 @ 12:04:55 End 2024.04.17 @ 12:08:38 Sessions 1 Manual Loads 0 Difficulty Rogue Special Mode None Game No. 71 Rogue 70 Adventurer 1 Explorer 0 Win Type - Total 2 Types 2/0/0/0/0/0/0/0/0 Lore% 26 Gallery% 47 Achievement% 39 Wizard Run 0 Options --------- Layout 0 ASCII 0 Keyboard 0 Movement Numpad Keybinds 0 Fullscreen 1 Font 18/SmallcapsGlow Map View 76x50 Zoom Use 0% Tactical HUD 1 Map Filters NONE Filters NONE Steam 1 RUN: 8990a720-5212-4cd5-b919-cdfcd1102263